[Event "Titled Tuesday Blitz March 22 Late 2022"]
[White "Pesotskiy, Mikhail"]
[Black "Fajdetic, Hrvoje"]
[WhiteFideId "34164453"]
[BlackFideId "14501945"]
[WhiteElo "2010"]
[BlackElo "2172"]
[Result "1-0"]
[Round "07"]
[TimeControl "180+1"]
[Date "2022.03.22"]
[WhiteClock "0:00:31"]
[BlackClock "0:00:04"]

1. c4 {[%clk 0:03:00]}  f5 {[%clk 0:02:57]} 2. d4 {[%clk 0:03:00]}  Nf6 {[%clk 0:02:58]} 3. Nc3 {[%clk 0:02:59]}  e6 {[%clk 0:02:58]} 4. g3 {[%clk 0:02:59]}  Bb4 {[%clk 0:02:58]} 5. Bg2 {[%clk 0:03:00]}  O-O {[%clk 0:02:57]} 6. Nf3 {[%clk 0:03:00]}  d6 {[%clk 0:02:53]} 7. O-O {[%clk 0:03:00]}  Bxc3 {[%clk 0:02:53]} 8. bxc3 {[%clk 0:03:00]}  Nc6 {[%clk 0:02:53]} 9. Ba3 {[%clk 0:02:54]}  Na5 {[%clk 0:02:46]} 10. c5 {[%clk 0:02:53]}  Nc4 {[%clk 0:02:38]} 11. Qb3 {[%clk 0:02:51]}  Nxa3 {[%clk 0:02:37]} 12. Qxa3 {[%clk 0:02:52]}  d5 {[%clk 0:02:28]} 13. c6 {[%clk 0:02:23]}  b6 {[%clk 0:02:14]} 14. Ne5 {[%clk 0:02:21]}  a5 {[%clk 0:02:13]} 15. c4 {[%clk 0:02:20]}  Ba6 {[%clk 0:02:10]} 16. Rac1 {[%clk 0:02:17]}  dxc4 {[%clk 0:02:03]} 17. Nxc4 {[%clk 0:02:18]}  Qxd4 {[%clk 0:02:01]} 18. Rfd1 {[%clk 0:02:17]}  Qc5 {[%clk 0:01:44]} 19. Qxc5 {[%clk 0:02:12]}  bxc5 {[%clk 0:01:45]} 20. e3 {[%clk 0:02:12]}  Rfd8 {[%clk 0:01:09]} 21. Nxa5 {[%clk 0:01:46]}  Rxd1+ {[%clk 0:00:24]} 22. Rxd1 {[%clk 0:01:47]}  Be2 {[%clk 0:00:24]} 23. Rd2 {[%clk 0:01:47]}  Rxa5 {[%clk 0:00:24]} 24. Rxe2 {[%clk 0:01:47]}  Nd5 {[%clk 0:00:21]} 25. Rb2 {[%clk 0:01:19]}  Nb4 {[%clk 0:00:18]} 26. Bf1 {[%clk 0:01:19]}  Rxa2 {[%clk 0:00:17]} 27. Rxa2 {[%clk 0:01:19]}  Nxa2 {[%clk 0:00:17]} 28. Bc4 {[%clk 0:01:20]}  Nb4 {[%clk 0:00:17]} 29. Bxe6+ {[%clk 0:01:21]}  Kf8 {[%clk 0:00:17]} 30. Bxf5 {[%clk 0:01:21]}  Nxc6 {[%clk 0:00:16]} 31. Bxh7 {[%clk 0:01:20]}  Ke7 {[%clk 0:00:16]} 32. Kf1 {[%clk 0:01:20]}  Kd6 {[%clk 0:00:15]} 33. Ke2 {[%clk 0:01:21]}  Kd5 {[%clk 0:00:15]} 34. Bg8+ {[%clk 0:00:52]}  Ke5 {[%clk 0:00:14]} 35. f4+ {[%clk 0:00:51]}  Kd6 {[%clk 0:00:15]} 36. h4 {[%clk 0:00:47]}  Ne7 {[%clk 0:00:14]} 37. Bc4 {[%clk 0:00:46]}  Nf5 {[%clk 0:00:09]} 38. Kf3 {[%clk 0:00:46]}  Kc6 {[%clk 0:00:09]} 39. h5 {[%clk 0:00:37]}  Nd6 {[%clk 0:00:09]} 40. Be6 {[%clk 0:00:37]}  c4 {[%clk 0:00:08]} 41. g4 {[%clk 0:00:33]}  c3 {[%clk 0:00:08]} 42. Ke2 {[%clk 0:00:33]}  Kc5 {[%clk 0:00:07]} 43. g5 {[%clk 0:00:33]}  Ne8 {[%clk 0:00:04]} 44. h6 {[%clk 0:00:31]}  gxh6 {[%clk 0:00:04]} 45. gxh6 {[%clk 0:00:32]}  Nf6 {[%clk 0:00:04]} 46. Bf5 {[%clk 0:00:32]}  Kb4 {[%clk 0:00:03]} 47. h7 {[%clk 0:00:31]}  Nxh7 {[%clk 0:00:03]} 48. Bxh7 {[%clk 0:00:32]}  Kb3 {[%clk 0:00:04]} 49. Kd1 {[%clk 0:00:31]}  Kb2 {[%clk 0:00:04]} 50. Bc2 {[%clk 0:00:31]} 1-0


[Site "https://www.chess.com"]

[Event "Titled Tuesday Blitz March 22 Late 2022"]
[White "Petesch, Gabriel"]
[Black "Zherebtsova, Alexandra"]
[WhiteFideId "2032465"]
[BlackFideId "24129518"]
[WhiteElo "2374"]
[BlackElo "2025"]
[Result "0-1"]
[Round "07"]
[TimeControl "180+1"]
[Date "2022.03.22"]
[WhiteClock "0:00:03"]
[BlackClock "0:00:13"]

1. d4 {[%clk 0:02:24]}  d5 {[%clk 0:02:43]} 2. Nf3 {[%clk 0:02:25]}  Nf6 {[%clk 0:02:42]} 3. Bf4 {[%clk 0:02:23]}  c5 {[%clk 0:02:40]} 4. e3 {[%clk 0:02:23]}  Nc6 {[%clk 0:02:38]} 5. Nbd2 {[%clk 0:02:21]}  Qb6 {[%clk 0:02:34]} 6. Rb1 {[%clk 0:02:18]}  cxd4 {[%clk 0:02:32]} 7. exd4 {[%clk 0:02:16]}  Nxd4 {[%clk 0:02:27]} 8. Nxd4 {[%clk 0:02:13]}  Qxd4 {[%clk 0:02:24]} 9. Bb5+ {[%clk 0:02:13]}  Bd7 {[%clk 0:02:23]} 10. Bxd7+ {[%clk 0:02:12]}  Nxd7 {[%clk 0:02:22]} 11. Be3 {[%clk 0:02:02]}  Qa4 {[%clk 0:02:15]} 12. O-O {[%clk 0:01:51]}  e6 {[%clk 0:02:15]} 13. b3 {[%clk 0:01:35]}  Qa6 {[%clk 0:02:01]} 14. c4 {[%clk 0:01:31]}  dxc4 {[%clk 0:01:39]} 15. Nxc4 {[%clk 0:01:28]}  Be7 {[%clk 0:01:39]} 16. Bd4 {[%clk 0:01:00]}  Nf6 {[%clk 0:01:04]} 17. Bxf6 {[%clk 0:00:55]}  Bxf6 {[%clk 0:01:03]} 18. Nd6+ {[%clk 0:00:53]}  Ke7 {[%clk 0:01:03]} 19. Ne4 {[%clk 0:00:49]}  Rhd8 {[%clk 0:00:59]} 20. Qh5 {[%clk 0:00:49]}  h6 {[%clk 0:00:39]} 21. Qc5+ {[%clk 0:00:48]}  Ke8 {[%clk 0:00:36]} 22. Rbd1 {[%clk 0:00:43]}  Be7 {[%clk 0:00:32]} 23. Qc2 {[%clk 0:00:39]}  Kf8 {[%clk 0:00:31]} 24. Qc7 {[%clk 0:00:35]}  Rac8 {[%clk 0:00:27]} 25. Rxd8+ {[%clk 0:00:34]}  Rxd8 {[%clk 0:00:27]} 26. g3 {[%clk 0:00:27]}  Qd3 {[%clk 0:00:20]} 27. Nc3 {[%clk 0:00:22]}  Qd7 {[%clk 0:00:17]} 28. Qa5 {[%clk 0:00:15]}  Rc8 {[%clk 0:00:16]} 29. Ne2 {[%clk 0:00:11]}  b6 {[%clk 0:00:16]} 30. Qa6 {[%clk 0:00:11]}  Rd8 {[%clk 0:00:15]} 31. Nf4 {[%clk 0:00:10]}  Bf6 {[%clk 0:00:14]} 32. Nh5 {[%clk 0:00:10]}  Be5 {[%clk 0:00:14]} 33. Qe2 {[%clk 0:00:09]}  Bb8 {[%clk 0:00:14]} 34. Qb2 {[%clk 0:00:08]}  f6 {[%clk 0:00:14]} 35. Qc1 {[%clk 0:00:06]}  e5 {[%clk 0:00:13]} 36. h4 {[%clk 0:00:04]}  Kg8 {[%clk 0:00:13]} 37. Qc4+ {[%clk 0:00:03]}  Qf7 {[%clk 0:00:13]} 38. Qxf7+ {[%clk 0:00:03]}  Kxf7 {[%clk 0:00:14]} 39. g4 {[%clk 0:00:04]}  g6 {[%clk 0:00:13]} 40. Ng3 {[%clk 0:00:04]}  Ke6 {[%clk 0:00:13]} 41. Ne4 {[%clk 0:00:04]}  f5 {[%clk 0:00:13]} 42. gxf5+ {[%clk 0:00:04]}  gxf5 {[%clk 0:00:14]} 43. Ng3 {[%clk 0:00:05]}  e4 {[%clk 0:00:14]} 44. Kg2 {[%clk 0:00:05]}  Bf4 {[%clk 0:00:14]} 45. a4 {[%clk 0:00:04]}  Rd2 {[%clk 0:00:15]} 46. Nh5 {[%clk 0:00:03]}  Be5 {[%clk 0:00:14]} 47. Rb1 {[%clk 0:00:03]}  Rd3 {[%clk 0:00:14]} 48. Kf1 {[%clk 0:00:03]}  f4 {[%clk 0:00:14]} 49. Ke2 {[%clk 0:00:02]}  Kf5 {[%clk 0:00:14]} 50. b4 {[%clk 0:00:02]}  Kg4 {[%clk 0:00:13]} 51. a5 {[%clk 0:00:03]}  Kxh5 {[%clk 0:00:14]} 52. axb6 {[%clk 0:00:03]}  axb6 {[%clk 0:00:14]} 53. b5 {[%clk 0:00:04]}  Bd4 {[%clk 0:00:14]} 54. Rb4 {[%clk 0:00:04]}  f3+ {[%clk 0:00:14]} 55. Ke1 {[%clk 0:00:04]}  Kxh4 {[%clk 0:00:14]} 56. Rxd4 {[%clk 0:00:03]}  Rxd4 {[%clk 0:00:13]} 0-1


[Site "https://www.chess.com"]

[Event "Titled Tuesday Blitz March 22 Late 2022"]
[White "Pichot, Alan"]
[Black "Saveliev, Alexei"]
[WhiteFideId "110973"]
[BlackFideId "24128546"]
[WhiteElo "2579"]
[BlackElo "2281"]
[Result "1-0"]
[Round "07"]
[TimeControl "180+1"]
[Date "2022.03.22"]
[WhiteClock "0:00:06"]
[BlackClock "0:00:07"]

1. e4 {[%clk 0:02:53]}  g6 {[%clk 0:03:00]} 2. d4 {[%clk 0:02:51]}  Bg7 {[%clk 0:03:00]} 3. Nc3 {[%clk 0:02:52]}  d6 {[%clk 0:03:01]} 4. Be3 {[%clk 0:02:52]}  Nc6 {[%clk 0:03:01]} 5. d5 {[%clk 0:02:49]}  Ne5 {[%clk 0:03:00]} 6. Be2 {[%clk 0:02:49]}  Nf6 {[%clk 0:03:01]} 7. h3 {[%clk 0:02:49]}  O-O {[%clk 0:03:01]} 8. f4 {[%clk 0:02:49]}  Ned7 {[%clk 0:03:02]} 9. Nf3 {[%clk 0:02:49]}  e6 {[%clk 0:03:00]} 10. dxe6 {[%clk 0:02:48]}  fxe6 {[%clk 0:03:01]} 11. O-O {[%clk 0:02:48]}  Kh8 {[%clk 0:02:45]} 12. Qd2 {[%clk 0:02:45]}  Qe7 {[%clk 0:02:43]} 13. Rae1 {[%clk 0:02:43]}  a6 {[%clk 0:02:40]} 14. g4 {[%clk 0:02:41]}  b5 {[%clk 0:02:37]} 15. a3 {[%clk 0:02:13]}  Bb7 {[%clk 0:02:37]} 16. Bd3 {[%clk 0:02:14]}  Rae8 {[%clk 0:02:24]} 17. Qf2 {[%clk 0:01:55]}  c5 {[%clk 0:02:21]} 18. b3 {[%clk 0:01:39]}  b4 {[%clk 0:02:13]} 19. axb4 {[%clk 0:01:38]}  cxb4 {[%clk 0:02:14]} 20. Ne2 {[%clk 0:01:34]}  Nxe4 {[%clk 0:02:12]} 21. Bxe4 {[%clk 0:01:34]}  Bxe4 {[%clk 0:02:13]} 22. Ng3 {[%clk 0:01:35]}  Bb7 {[%clk 0:02:11]} 23. Qd2 {[%clk 0:01:32]}  Bxf3 {[%clk 0:01:44]} 24. Rxf3 {[%clk 0:01:32]}  a5 {[%clk 0:01:43]} 25. Bd4 {[%clk 0:01:23]}  e5 {[%clk 0:01:38]} 26. Bb2 {[%clk 0:01:23]}  Nc5 {[%clk 0:01:13]} 27. f5 {[%clk 0:01:22]}  Qh4 {[%clk 0:01:09]} 28. Qxd6 {[%clk 0:01:18]}  e4 {[%clk 0:00:55]} 29. f6 {[%clk 0:01:14]}  Rxf6 {[%clk 0:00:36]} 30. Rxf6 {[%clk 0:01:08]}  Nd7 {[%clk 0:00:25]} 31. Rf3 {[%clk 0:00:43]}  Bxb2 {[%clk 0:00:21]} 32. Qxd7 {[%clk 0:00:43]}  Rd8 {[%clk 0:00:18]} 33. Qxd8+ {[%clk 0:00:36]}  Qxd8 {[%clk 0:00:19]} 34. Nxe4 {[%clk 0:00:36]}  Be5 {[%clk 0:00:17]} 35. Kg2 {[%clk 0:00:36]}  Qd5 {[%clk 0:00:15]} 36. Re2 {[%clk 0:00:33]}  Qc6 {[%clk 0:00:14]} 37. Nf2 {[%clk 0:00:31]}  Bg7 {[%clk 0:00:12]} 38. Nd3 {[%clk 0:00:31]}  h5 {[%clk 0:00:12]} 39. gxh5 {[%clk 0:00:30]}  gxh5 {[%clk 0:00:13]} 40. Nf4 {[%clk 0:00:31]}  h4 {[%clk 0:00:12]} 41. Nd3 {[%clk 0:00:29]}  Kh7 {[%clk 0:00:11]} 42. Nf2 {[%clk 0:00:28]}  a4 {[%clk 0:00:10]} 43. bxa4 {[%clk 0:00:28]}  Qxa4 {[%clk 0:00:11]} 44. Rf4 {[%clk 0:00:27]}  Qc6+ {[%clk 0:00:11]} 45. Kg1 {[%clk 0:00:27]}  Bf6 {[%clk 0:00:06]} 46. Rxb4 {[%clk 0:00:23]}  Bd8 {[%clk 0:00:04]} 47. Rf4 {[%clk 0:00:16]}  Qa6 {[%clk 0:00:03]} 48. Nd3 {[%clk 0:00:14]}  Qg6+ {[%clk 0:00:03]} 49. Rg2 {[%clk 0:00:13]}  Qb6+ {[%clk 0:00:02]} 50. Kf1 {[%clk 0:00:12]}  Qe6 {[%clk 0:00:02]} 51. Rfg4 {[%clk 0:00:09]}  Bf6 {[%clk 0:00:02]} 52. Re2 {[%clk 0:00:08]}  Qf5+ {[%clk 0:00:02]} 53. Kg2 {[%clk 0:00:08]}  Qd5+ {[%clk 0:00:02]} 54. Kg1 {[%clk 0:00:07]}  Qd6 {[%clk 0:00:03]} 55. Rge4 {[%clk 0:00:06]}  Qb6+ {[%clk 0:00:03]} 56. Kf1 {[%clk 0:00:07]}  Qc7 {[%clk 0:00:04]} 57. Re6 {[%clk 0:00:06]}  Bg7 {[%clk 0:00:04]} 58. R2e4 {[%clk 0:00:06]}  Qg3 {[%clk 0:00:04]} 59. Re3 {[%clk 0:00:07]}  Qh2 {[%clk 0:00:04]} 60. R6e4 {[%clk 0:00:07]}  Qh1+ {[%clk 0:00:04]} 61. Ke2 {[%clk 0:00:07]}  Qg2+ {[%clk 0:00:04]} 62. Nf2 {[%clk 0:00:08]}  Bh6 {[%clk 0:00:04]} 63. Rxh4 {[%clk 0:00:08]}  Qc6 {[%clk 0:00:04]} 64. Ng4 {[%clk 0:00:05]}  Qxc2+ {[%clk 0:00:03]} 65. Kf3 {[%clk 0:00:06]}  Qd1+ {[%clk 0:00:03]} 66. Kf2 {[%clk 0:00:05]}  Qd2+ {[%clk 0:00:03]} 67. Re2 {[%clk 0:00:06]}  Qf4+ {[%clk 0:00:04]} 68. Kg2 {[%clk 0:00:06]}  Qc4 {[%clk 0:00:03]} 69. Rxh6+ {[%clk 0:00:07]}  Kg7 {[%clk 0:00:03]} 70. Rhe6 {[%clk 0:00:07]}  Qc6+ {[%clk 0:00:03]} 71. Rxc6 {[%clk 0:00:07]}  Kf7 {[%clk 0:00:04]} 72. Ree6 {[%clk 0:00:06]}  Kf8 {[%clk 0:00:05]} 73. Red6 {[%clk 0:00:06]}  Kf7 {[%clk 0:00:06]} 74. Rd7+ {[%clk 0:00:06]}  Ke8 {[%clk 0:00:07]} 75. Rb7 {[%clk 0:00:06]}  Kf8 {[%clk 0:00:07]} 76. Ra6 {[%clk 0:00:06]} 1-0


[Site "https://www.chess.com"]

[Event "Titled Tuesday Blitz March 22 Late 2022"]
[White "Piliczewski, Bogusz"]
[Black "Piesik, Piotr"]
[WhiteFideId "1104144"]
[BlackFideId "1136194"]
[WhiteElo "1896"]
[BlackElo "2190"]
[Result "0-1"]
[Round "07"]
[TimeControl "180+1"]
[Date "2022.03.22"]
[WhiteClock "0:00:06"]
[BlackClock "0:01:53"]

1. d4 {[%clk 0:02:52]}  c5 {[%clk 0:02:59]} 2. c3 {[%clk 0:02:51]}  Nf6 {[%clk 0:02:59]} 3. Nf3 {[%clk 0:02:51]}  d5 {[%clk 0:02:59]} 4. Bf4 {[%clk 0:02:50]}  Bf5 {[%clk 0:02:59]} 5. e3 {[%clk 0:02:47]}  Nbd7 {[%clk 0:02:59]} 6. Nbd2 {[%clk 0:02:47]}  e6 {[%clk 0:02:59]} 7. Be2 {[%clk 0:02:47]}  Qb6 {[%clk 0:02:58]} 8. Qb3 {[%clk 0:02:46]}  c4 {[%clk 0:02:58]} 9. Qxb6 {[%clk 0:02:45]}  Nxb6 {[%clk 0:02:59]} 10. h3 {[%clk 0:02:43]}  Be7 {[%clk 0:02:58]} 11. O-O {[%clk 0:02:41]}  h6 {[%clk 0:02:58]} 12. g4 {[%clk 0:02:39]}  Bh7 {[%clk 0:02:57]} 13. Ne5 {[%clk 0:02:37]}  Nfd7 {[%clk 0:02:57]} 14. Nxd7 {[%clk 0:02:35]}  Kxd7 {[%clk 0:02:57]} 15. b3 {[%clk 0:02:35]}  Ba3 {[%clk 0:02:47]} 16. bxc4 {[%clk 0:02:19]}  Bb2 {[%clk 0:02:46]} 17. cxd5 {[%clk 0:02:12]}  Nxd5 {[%clk 0:02:43]} 18. Rae1 {[%clk 0:01:39]}  Bxc3 {[%clk 0:02:38]} 19. Rd1 {[%clk 0:01:29]}  Rhc8 {[%clk 0:02:33]} 20. Be5 {[%clk 0:01:23]}  Bc2 {[%clk 0:02:32]} 21. Bxg7 {[%clk 0:01:12]}  Bxd2 {[%clk 0:02:32]} 22. Rxd2 {[%clk 0:01:11]}  a6 {[%clk 0:02:18]} 23. Bxh6 {[%clk 0:01:09]}  b5 {[%clk 0:02:15]} 24. Bg7 {[%clk 0:01:02]}  Nb4 {[%clk 0:02:13]} 25. a3 {[%clk 0:01:00]}  Nd5 {[%clk 0:02:14]} 26. Bf3 {[%clk 0:00:48]}  Bb3 {[%clk 0:02:11]} 27. Be5 {[%clk 0:00:45]}  Rc3 {[%clk 0:02:08]} 28. h4 {[%clk 0:00:42]}  Rg8 {[%clk 0:02:05]} 29. h5 {[%clk 0:00:40]}  f6 {[%clk 0:02:02]} 30. Bg3 {[%clk 0:00:35]}  Bc4 {[%clk 0:02:00]} 31. Kg2 {[%clk 0:00:30]}  Bxf1+ {[%clk 0:01:58]} 32. Kxf1 {[%clk 0:00:30]}  Rxa3 {[%clk 0:01:58]} 33. Kg2 {[%clk 0:00:29]}  b4 {[%clk 0:01:56]} 34. Rb2 {[%clk 0:00:24]}  b3 {[%clk 0:01:56]} 35. Bxd5 {[%clk 0:00:19]}  exd5 {[%clk 0:01:55]} 36. f3 {[%clk 0:00:19]}  Ra2 {[%clk 0:01:54]} 37. Rxa2 {[%clk 0:00:16]}  bxa2 {[%clk 0:01:55]} 38. h6 {[%clk 0:00:14]}  a1=Q {[%clk 0:01:55]} 39. f4 {[%clk 0:00:12]}  Qb2+ {[%clk 0:01:55]} 40. Kf3 {[%clk 0:00:11]}  Rc8 {[%clk 0:01:53]} 41. g5 {[%clk 0:00:11]}  f5 {[%clk 0:01:52]} 42. g6 {[%clk 0:00:09]}  Rc1 {[%clk 0:01:52]} 43. Bf2 {[%clk 0:00:08]}  Rf1 {[%clk 0:01:52]} 44. Kg3 {[%clk 0:00:07]}  Qxf2+ {[%clk 0:01:52]} 45. Kh3 {[%clk 0:00:06]}  Rh1# {[%clk 0:01:53]} 0-1


[Site "https://www.chess.com"]

[Event "Titled Tuesday Blitz March 22 Late 2022"]
[White "Prohorov, Olexandr"]
[Black "Altman, Joshua"]
[WhiteFideId "14105578"]
[BlackFideId "426210"]
[WhiteElo "1993"]
[BlackElo "1945"]
[Result "0-1"]
[Round "07"]
[TimeControl "180+1"]
[Date "2022.03.22"]
[WhiteClock "0:00:01"]
[BlackClock "0:00:18"]

1. Nf3 {[%clk 0:03:00]}  Nf6 {[%clk 0:03:00]} 2. c4 {[%clk 0:03:00]}  e6 {[%clk 0:03:00]} 3. Nc3 {[%clk 0:02:59]}  Bb4 {[%clk 0:02:59]} 4. g4 {[%clk 0:02:58]}  h6 {[%clk 0:02:53]} 5. Rg1 {[%clk 0:02:58]}  b6 {[%clk 0:02:51]} 6. h4 {[%clk 0:02:57]}  Bb7 {[%clk 0:02:50]} 7. a3 {[%clk 0:02:52]}  Bxc3 {[%clk 0:02:50]} 8. dxc3 {[%clk 0:02:52]}  d6 {[%clk 0:02:51]} 9. g5 {[%clk 0:02:49]}  hxg5 {[%clk 0:02:50]} 10. hxg5 {[%clk 0:02:50]}  Nfd7 {[%clk 0:02:46]} 11. g6 {[%clk 0:02:45]}  f6 {[%clk 0:02:44]} 12. Nd4 {[%clk 0:02:25]}  Qe7 {[%clk 0:02:41]} 13. Qc2 {[%clk 0:02:15]}  c5 {[%clk 0:02:31]} 14. Nb5 {[%clk 0:02:09]}  Ne5 {[%clk 0:02:30]} 15. f4 {[%clk 0:01:56]}  Nec6 {[%clk 0:02:03]} 16. Qd2 {[%clk 0:01:48]}  Kd7 {[%clk 0:01:46]} 17. f5 {[%clk 0:01:39]}  a6 {[%clk 0:01:37]} 18. fxe6+ {[%clk 0:01:36]}  Qxe6 {[%clk 0:01:37]} 19. Nxd6 {[%clk 0:01:25]}  Qxd6 {[%clk 0:01:36]} 20. Qxd6+ {[%clk 0:01:24]}  Kxd6 {[%clk 0:01:36]} 21. Bf4+ {[%clk 0:01:12]}  Ne5 {[%clk 0:01:29]} 22. O-O-O+ {[%clk 0:01:12]}  Ke7 {[%clk 0:01:29]} 23. Bxe5 {[%clk 0:01:07]}  fxe5 {[%clk 0:01:29]} 24. Rg5 {[%clk 0:01:08]}  Nc6 {[%clk 0:01:28]} 25. Bg2 {[%clk 0:00:52]}  Rad8 {[%clk 0:01:19]} 26. Bd5 {[%clk 0:00:46]}  Rd6 {[%clk 0:00:45]} 27. Rf1 {[%clk 0:00:39]}  Rf6 {[%clk 0:00:42]} 28. Rgf5 {[%clk 0:00:34]}  Rhf8 {[%clk 0:00:35]} 29. e4 {[%clk 0:00:30]}  Rxf5 {[%clk 0:00:33]} 30. exf5 {[%clk 0:00:27]}  Na5 {[%clk 0:00:30]} 31. b4 {[%clk 0:00:25]}  Bxd5 {[%clk 0:00:28]} 32. cxd5 {[%clk 0:00:25]}  Nc4 {[%clk 0:00:28]} 33. bxc5 {[%clk 0:00:23]}  bxc5 {[%clk 0:00:28]} 34. Rf2 {[%clk 0:00:16]}  Ne3 {[%clk 0:00:28]} 35. d6+ {[%clk 0:00:08]}  Kxd6 {[%clk 0:00:27]} 36. f6 {[%clk 0:00:08]}  gxf6 {[%clk 0:00:24]} 37. g7 {[%clk 0:00:07]}  Rg8 {[%clk 0:00:24]} 38. Rxf6+ {[%clk 0:00:06]}  Kd5 {[%clk 0:00:20]} 39. Rg6 {[%clk 0:00:03]}  Nf5 {[%clk 0:00:17]} 40. Rxa6 {[%clk 0:00:02]}  Rxg7 {[%clk 0:00:18]} 41. Kc2 {[%clk 0:00:01]}  e4 {[%clk 0:00:18]} 0-1


[Site "https://www.chess.com"]

[Event "Titled Tuesday Blitz March 22 Late 2022"]
[White "Przybylski, Wojciech"]
[Black "Bachmann, Axel"]
[WhiteFideId "1117599"]
[BlackFideId "3700488"]
[WhiteElo "2133"]
[BlackElo "2587"]
[Result "1-0"]
[Round "07"]
[TimeControl "180+1"]
[Date "2022.03.22"]
[WhiteClock "0:00:08"]
[BlackClock "0:00:08"]

1. e4 {[%clk 0:02:54]}  c5 {[%clk 0:02:59]} 2. Nf3 {[%clk 0:02:54]}  d6 {[%clk 0:02:59]} 3. Bb5+ {[%clk 0:02:53]}  Nd7 {[%clk 0:02:58]} 4. O-O {[%clk 0:02:53]}  a6 {[%clk 0:02:57]} 5. Bd3 {[%clk 0:02:53]}  Ngf6 {[%clk 0:02:57]} 6. Re1 {[%clk 0:02:52]}  e6 {[%clk 0:02:55]} 7. c3 {[%clk 0:02:51]}  b5 {[%clk 0:02:52]} 8. a4 {[%clk 0:02:50]}  Bb7 {[%clk 0:02:51]} 9. Bc2 {[%clk 0:02:50]}  c4 {[%clk 0:02:49]} 10. h3 {[%clk 0:02:44]}  Be7 {[%clk 0:02:44]} 11. d4 {[%clk 0:02:35]}  cxd3 {[%clk 0:02:43]} 12. Bxd3 {[%clk 0:02:34]}  O-O {[%clk 0:02:39]} 13. Nbd2 {[%clk 0:02:27]}  Nc5 {[%clk 0:02:27]} 14. Bc2 {[%clk 0:02:24]}  bxa4 {[%clk 0:02:03]} 15. Nd4 {[%clk 0:02:07]}  Qc7 {[%clk 0:01:55]} 16. Qe2 {[%clk 0:01:54]}  Rfd8 {[%clk 0:01:43]} 17. f3 {[%clk 0:01:49]}  Rac8 {[%clk 0:01:39]} 18. Bxa4 {[%clk 0:01:44]}  Nxa4 {[%clk 0:01:36]} 19. Rxa4 {[%clk 0:01:43]}  Nd7 {[%clk 0:01:29]} 20. Nf1 {[%clk 0:01:29]}  Nc5 {[%clk 0:01:27]} 21. Ra1 {[%clk 0:01:24]}  d5 {[%clk 0:01:17]} 22. e5 {[%clk 0:01:22]}  a5 {[%clk 0:01:13]} 23. f4 {[%clk 0:01:19]}  Ba6 {[%clk 0:01:12]} 24. Qg4 {[%clk 0:01:16]}  Nd3 {[%clk 0:00:55]} 25. Rd1 {[%clk 0:01:16]}  Bc5 {[%clk 0:00:51]} 26. Ng3 {[%clk 0:00:59]}  Qb6 {[%clk 0:00:47]} 27. f5 {[%clk 0:00:57]}  Nxe5 {[%clk 0:00:37]} 28. Qg5 {[%clk 0:00:37]}  Nd3 {[%clk 0:00:29]} 29. Nh5 {[%clk 0:00:33]}  Bxd4+ {[%clk 0:00:28]} 30. cxd4 {[%clk 0:00:31]}  Qxd4+ {[%clk 0:00:22]} 31. Be3 {[%clk 0:00:29]}  h6 {[%clk 0:00:18]} 32. Qxd8+ {[%clk 0:00:26]}  Rxd8 {[%clk 0:00:17]} 33. Bxd4 {[%clk 0:00:27]}  e5 {[%clk 0:00:16]} 34. Bb6 {[%clk 0:00:25]}  Rd6 {[%clk 0:00:14]} 35. Bxa5 {[%clk 0:00:24]}  Nxb2 {[%clk 0:00:14]} 36. Rdb1 {[%clk 0:00:20]}  Nc4 {[%clk 0:00:12]} 37. Rb8+ {[%clk 0:00:19]}  Kh7 {[%clk 0:00:12]} 38. Bb4 {[%clk 0:00:19]}  Rc6 {[%clk 0:00:11]} 39. Bf8 {[%clk 0:00:19]}  d4 {[%clk 0:00:10]} 40. Bxg7 {[%clk 0:00:17]}  Bc8 {[%clk 0:00:09]} 41. Raa8 {[%clk 0:00:15]}  Bxf5 {[%clk 0:00:08]} 42. Rh8+ {[%clk 0:00:10]}  Kg6 {[%clk 0:00:08]} 43. Rxh6+ {[%clk 0:00:10]}  Kg5 {[%clk 0:00:07]} 44. Rxc6 {[%clk 0:00:09]}  Ne3 {[%clk 0:00:06]} 45. Bxe5 {[%clk 0:00:08]}  Kxh5 {[%clk 0:00:04]} 46. Bxd4 {[%clk 0:00:08]}  Nd5 {[%clk 0:00:04]} 47. Rc5 {[%clk 0:00:07]}  Be6 {[%clk 0:00:04]} 48. Raa5 {[%clk 0:00:07]}  Kh4 {[%clk 0:00:02]} 49. Rxd5 {[%clk 0:00:07]}  Bxd5 {[%clk 0:00:02]} 50. Rxd5 {[%clk 0:00:07]}  f5 {[%clk 0:00:02]} 51. Bf2+ {[%clk 0:00:07]}  Kg5 {[%clk 0:00:02]} 52. g4 {[%clk 0:00:08]}  Kf4 {[%clk 0:00:01]} 53. Rxf5+ {[%clk 0:00:08]}  Ke4 {[%clk 0:00:01]} 54. Kg2 {[%clk 0:00:08]}  Kd3 {[%clk 0:00:02]} 55. Kf3 {[%clk 0:00:09]}  Kc4 {[%clk 0:00:02]} 56. Re5 {[%clk 0:00:09]}  Kd3 {[%clk 0:00:03]} 57. Rd5+ {[%clk 0:00:08]}  Kc4 {[%clk 0:00:04]} 58. Rd4+ {[%clk 0:00:08]}  Kc3 {[%clk 0:00:05]} 59. Ke4 {[%clk 0:00:09]}  Kc2 {[%clk 0:00:06]} 60. Rd3 {[%clk 0:00:09]}  Kb2 {[%clk 0:00:06]} 61. Kd4 {[%clk 0:00:08]}  Kc2 {[%clk 0:00:07]} 62. Kc4 {[%clk 0:00:09]}  Kc1 {[%clk 0:00:08]} 63. Kb3 {[%clk 0:00:08]} 1-0


[Site "https://www.chess.com"]

[Event "Titled Tuesday Blitz March 22 Late 2022"]
[White "Rudykh, Stepan"]
[Black "Erdogdu, Mert"]
[WhiteFideId "4180321"]
[BlackFideId "6301495"]
[WhiteElo "2152"]
[BlackElo "2485"]
[Result "0-1"]
[Round "07"]
[TimeControl "180+1"]
[Date "2022.03.22"]
[WhiteClock "0:00:47"]
[BlackClock "0:01:01"]

1. e4 {[%clk 0:03:00]}  c5 {[%clk 0:03:00]} 2. Nf3 {[%clk 0:03:01]}  d6 {[%clk 0:03:00]} 3. d4 {[%clk 0:03:02]}  cxd4 {[%clk 0:03:00]} 4. Nxd4 {[%clk 0:03:02]}  Nf6 {[%clk 0:03:00]} 5. Nc3 {[%clk 0:03:03]}  a6 {[%clk 0:03:00]} 6. Be3 {[%clk 0:03:04]}  e6 {[%clk 0:03:00]} 7. f3 {[%clk 0:02:55]}  b5 {[%clk 0:03:00]} 8. Qd2 {[%clk 0:02:54]}  Bb7 {[%clk 0:02:59]} 9. g4 {[%clk 0:02:52]}  Nfd7 {[%clk 0:02:55]} 10. g5 {[%clk 0:02:48]}  Nb6 {[%clk 0:02:55]} 11. Rg1 {[%clk 0:02:41]}  N8d7 {[%clk 0:02:54]} 12. f4 {[%clk 0:02:31]}  b4 {[%clk 0:02:51]} 13. Nd5 {[%clk 0:02:24]}  exd5 {[%clk 0:02:48]} 14. exd5 {[%clk 0:02:24]}  Nxd5 {[%clk 0:02:43]} 15. O-O-O {[%clk 0:02:21]}  Be7 {[%clk 0:02:42]} 16. Nf5 {[%clk 0:02:15]}  Qa5 {[%clk 0:02:01]} 17. Bc4 {[%clk 0:02:07]}  Nxe3 {[%clk 0:01:52]} 18. Nxd6+ {[%clk 0:01:31]}  Bxd6 {[%clk 0:01:12]} 19. Qxd6 {[%clk 0:01:16]}  O-O-O {[%clk 0:01:10]} 20. Rd4 {[%clk 0:00:58]}  Qc5 {[%clk 0:01:03]} 21. Bxa6 {[%clk 0:00:47]}  Qxd6 {[%clk 0:01:01]} 0-1


[Site "https://www.chess.com"]